bitfinex/quotes_SOLUSD_20250102
["timestamp","ask_amount","ask_price","bid_price","bid_amount"]
[1735826735031,0.81133238,207.54,207.48,20.17123878]
[1735826735233,20.17123878,207.55,207.48,20.17123878]
[1735826735471,20.17123878,207.56,207.48,20.17123878]
[1735826735650,20.17123878,207.57,207.49,20.17123878]
[1735826735971,20.17123878,207.56,207.49,20.17123878]
[1735826736645,20.17123878,207.56,207.44,0.72276936]
[1735826736646,0.81133238,207.57,207.5,20.17123878]
[1735826736850,20.17123878,207.62,207.55,20.17123878]
[1735826737052,20.17123878,207.63,207.56,20.17123878]
[1735826737349,20.17123878,207.6,207.53,20.17123878]
[1735826737554,20.17123878,207.58,207.51,20.17123878]
[1735826737754,20.17123878,207.58,207.5,20.17123878]
[1735826738276,20.98257116,207.57,207.5,20.17123878]
[1735826738647,0.81133238,207.57,207.51,20.17123878]
[1735826738851,20.17123878,207.59,207.52,20.17123878]
[1735826739167,0.81133238,207.58,207.51,20.17123878]
[1735826739361,20.98257116,207.58,207.51,20.17123878]
[1735826740471,20.17123878,207.57,207.49,20.17123878]
[1735826740675,20.17123878,207.58,207.51,20.17123878]
[1735826740976,20.98257116,207.61,207.53,20.17123878]
[1735826741347,20.17123878,207.6,207.53,20.17123878]
[1735826741658,20.98257116,207.62,207.54,20.17123878]
[1735826741850,20.17123878,207.62,207.55,20.17123878]
[1735826742047,20.17123878,207.65,207.58,20.17123878]
[1735826742253,20.98257116,207.66,207.58,20.17123878]
[1735826742667,20.17123878,207.65,207.58,20.17123878]
[1735826743378,20.17123878,207.6,207.5,135.6]
[1735826743580,20.17123878,207.57,207.5,20.17123878]
[1735826743760,20.17123878,207.56,207.49,157.42373878]
[1735826744072,20.17123878,207.57,207.5,20.17123878]
[1735826744573,20.17123878,207.56,207.49,157.42373878]
[1735826744767,20.17123878,207.57,207.49,157.42373878]
[1735826744971,20.17123878,207.56,207.49,157.42373878]
[1735826745276,20.17123878,207.55,207.49,1.6525]
[1735826745777,20.17123878,207.55,207.48,6.2595]
[1735826745778,20.17123878,207.53,207.46,20.17123878]
[1735826746072,20.17123878,207.55,207.48,20.17123878]
[1735826746285,0.93682238,207.57,207.45,20.17123878]
[1735826746286,20.17123878,207.52,207.45,20.17123878]
[1735826746571,20.17123878,207.51,207.44,21.68723878]
[1735826747771,20.17123878,207.51,207.44,1.516]
[1735826748083,20.42221878,207.45,207.37,20.17123878]
[1735826748253,20.17123878,207.44,207.36,20.17123878]
[1735826748450,20.17123878,207.44,207.37,20.17123878]
[1735826748651,20.98257116,207.43,207.36,20.17123878]
[1735826748858,20.17123878,207.41,207.34,20.17123878]
[1735826749067,24.58821638,207.4,207.34,20.17123878]
[1735826749274,44.75945516,207.4,207.33,20.17123878]
[1735826749477,20.17123878,207.42,207.35,20.17123878]
[1735826749665,40.17123878,207.43,207.35,20.17123878]
[1735826749975,20.17123878,207.43,207.35,20.17123878]
[1735826750283,20.17123878,207.43,207.36,20.17123878]
[1735826750480,40.17123878,207.4,207.33,0.7233162]
[1735826750781,20.17123878,207.37,207.29,20.17123878]
[1735826751083,20.17123878,207.37,207.29,20.89459713]
[1735826751378,20.17123878,207.36,207.29,0.72335835]
[1735826751680,20.17123878,207.34,207.28,1.5498]
[1735826752179,23.776884,207.34,207.28,1.5498]
[1735826752369,44.75945516,207.34,207.28,1.5498]
[1735826752869,20.17123878,207.36,207.29,20.17123878]
[1735826753063,20.17123878,207.38,207.31,20.17123878]
[1735826753272,20.17123878,207.41,207.33,20.17123878]
[1735826753472,20.17123878,207.43,207.35,20.17123878]
[1735826753676,20.17123878,207.43,207.36,20.17123878]
[1735826753981,20.98257116,207.44,207.36,20.17123878]
[1735826754369,20.17123878,207.43,207.36,20.17123878]
[1735826754581,20.17123878,207.42,207.35,20.17123878]
[1735826755084,20.17123878,207.42,207.34,20.17123878]
[1735826755384,20.17123878,207.42,207.35,20.17123878]
[1735826756166,20.17123878,207.44,207.36,20.17123878]
[1735826756479,20.17123878,207.46,207.39,20.17123878]
[1735826756680,20.17123878,207.45,207.37,20.17123878]
[1735826756864,20.17123878,207.45,207.38,20.17123878]
[1735826757482,20.17123878,207.41,207.36,0.7231181]
[1735826757694,20.17123878,207.41,207.28,137.1498]
[1735826757695,20.17123878,207.39,207.32,20.17123878]
[1735826758079,20.17123878,207.4,207.32,20.17123878]
[1735826758772,20.17123878,207.39,207.32,20.17123878]
[1735826759098,20.17123878,207.4,207.33,20.17123878]
[1735826759496,20.17123878,207.42,207.35,20.17123878]
[1735826759791,20.17123878,207.43,207.36,20.17123878]
[1735826759977,20.17123878,207.45,207.38,20.17123878]
[1735826760184,20.17123878,207.45,207.37,20.17123878]
[1735826760475,5.81133237,207.49,207.36,20.17123878]
[1735826760476,20.17123878,207.43,207.36,20.17123878]
[1735826760689,20.17123878,207.44,207.35,0.72315748]
[1735826760899,20.17123878,207.44,207.36,20.17123878]
[1735826761714,20.17123878,207.43,207.36,20.17123878]
[1735826762024,0.81133238,207.54,207.42,20.17123878]
[1735826762323,20.98257116,207.54,207.44,20.17123878]
[1735826762504,20.17123878,207.53,207.45,20.89410147]
[1735826762827,20.17123878,207.53,207.46,20.17123878]
[1735826763124,20.17123878,207.55,207.48,20.17123878]
[1735826763419,0.81133238,207.57,207.5,20.17123878]
[1735826763646,0.81133238,207.57,207.42,0.25098]
[1735826763647,20.17123878,207.58,207.51,20.89397768]
[1735826764208,20.17123878,207.6,207.53,20.17123878]
[1735826764411,20.17123878,207.62,207.55,20.17123878]
[1735826764715,20.17123878,207.61,207.54,20.17123878]
[1735826764908,20.17123878,207.57,207.52,0.72254538]
[1735826765214,43.94812278,207.58,207.51,20.17123878]
[1735826765414,20.17123878,207.57,207.5,20.8938943]
[1735826765653,20.17123878,207.58,207.51,20.17123878]
[1735826765820,20.17123878,207.61,207.53,20.17123878]
[1735826766010,20.98257116,207.6,207.53,20.17123878]
[1735826766209,20.17123878,207.6,207.53,20.17123878]
[1735826766426,20.17123878,207.59,207.52,20.17123878]
[1735826766632,20.17123878,207.61,207.54,20.17123878]
[1735826767251,20.17123878,207.62,207.55,20.17123878]
[1735826767550,20.17123878,207.63,207.56,20.89372926]
[1735826767912,20.17123878,207.64,207.57,20.17123878]
[1735826768322,20.17123878,207.64,207.56,20.17123878]
[1735826768743,20.17123878,207.65,207.57,20.17123878]
[1735826769133,20.17123878,207.66,207.59,20.17123878]
[1735826769545,20.17123878,207.65,207.58,20.17123878]
[1735826770146,20.17123878,207.64,207.57,20.17123878]
[1735826771132,20.17123878,207.65,207.58,20.17123878]
[1735826771363,20.17123878,207.65,207.56,0.72243674]
[1735826771364,23.776884,207.64,207.56,0.72243674]
[1735826771566,20.17123878,207.62,207.56,0.72243674]
[1735826771767,20.17123878,207.7,207.57,20.17123878]
[1735826771768,20.17123878,207.65,207.57,20.17123878]
[1735826771985,20.17123878,207.65,207.58,20.8936373]
[1735826772142,20.17123878,207.66,207.59,20.17123878]
[1735826773159,20.17123878,207.66,207.58,20.17123878]
[1735826775364,20.17123878,207.66,207.59,20.17123878]
[1735826776454,20.17123878,207.66,207.58,40.89365233]
[1735826776651,12.84483238,207.76,207.65,20.17123878]
[1735826776840,20.17123878,207.73,207.66,20.17123878]
[1735826777041,20.17123878,207.72,207.65,20.17123878]
[1735826777437,20.17123878,207.73,207.66,20.17123878]
[1735826777641,20.17123878,207.76,207.69,20.17123878]
[1735826777862,20.17123878,207.77,207.71,20.17123878]
[1735826778073,20.17123878,207.74,207.67,20.17123878]
[1735826778240,0.81133238,207.73,207.67,20.17123878]
[1735826778444,20.98257116,207.73,207.66,155.77123878]
[1735826778646,23.776884,207.72,207.67,20.17123878]
[1735826778861,0.81133238,207.73,207.67,20.17123878]
[1735826779064,20.17123878,207.75,207.69,20.17123878]
[1735826779274,20.17123878,207.73,207.66,155.77123878]
[1735826779442,20.98257116,207.72,207.66,135.6]
[1735826779644,23.902374,207.73,207.67,20.17123878]
[1735826779843,23.776884,207.73,207.68,20.17123878]
[1735826780144,20.17123878,207.76,207.69,20.17123878]
[1735826780544,20.17123878,207.77,207.7,20.17123878]
[1735826780747,20.17123878,207.78,207.71,20.17123878]
[1735826781643,20.17123878,207.79,207.72,20.17123878]
[1735826782073,0.81133238,207.88,207.78,20.17123878]
[1735826782242,0.81133238,207.88,207.82,20.17123878]
[1735826782563,0.81133238,207.88,207.83,20.17123878]
[1735826783268,0.81133238,207.89,207.83,20.17123878]
[1735826783673,0.81133238,207.89,207.81,20.17123878]
[1735826783674,20.17123878,207.87,207.81,20.17123878]
[1735826783872,20.17123878,207.83,207.76,20.89290132]
[1735826784168,20.17123878,207.83,207.74,1.5506]
[1735826784169,20.17123878,207.91,207.82,155.77123878]
[1735826784356,0.81133238,208.0,207.86,20.17123878]
[1735826784556,12.0199,207.99,207.83,0.72149989]
[1735826784768,0.81133238,207.98,207.89,20.17123878]
[1735826784972,20.17123878,207.92,207.84,20.17123878]
[1735826785166,20.17123878,207.92,207.85,20.17123878]
[1735826785381,20.17123878,207.91,207.84,20.17123878]
[1735826785673,23.776884,207.89,207.83,20.17123878]
[1735826786270,23.776884,207.9,207.84,20.17123878]
[1735826786470,20.17123878,207.92,207.85,20.17123878]
[1735826786659,20.17123878,207.91,207.84,20.17123878]
[1735826786973,23.776884,207.9,207.85,20.17123878]
[1735826787172,20.17123878,207.93,207.86,20.17123878]
[1735826787469,23.776884,207.92,207.87,20.17123878]
[1735826788147,20.17123878,207.94,207.87,20.17123878]
[1735826788447,23.776884,207.94,207.89,20.17123878]
[1735826788647,20.17123878,207.98,207.9,20.17123878]
[1735826788948,23.776884,207.97,207.9,20.17123878]
[1735826789145,23.776884,207.97,207.91,20.17123878]
[1735826789768,23.776884,207.98,207.92,20.17123878]
[1735826790073,20.17123878,207.99,207.92,20.17123878]
[1735826790276,23.776884,207.98,207.92,20.17123878]
[1735826790774,20.98257116,207.97,207.9,20.17123878]
[1735826790961,23.776884,207.95,207.89,20.17123878]
[1735826791149,20.17123878,207.98,207.91,20.17123878]
[1735826791345,20.98257116,207.97,207.9,20.17123878]
[1735826791552,20.98257116,207.97,207.87,0.72139102]
[1735826791553,23.776884,207.96,207.89,20.17123878]
[1735826791779,23.776884,207.96,207.9,20.17123878]
[1735826792074,20.17123878,207.98,207.91,20.17123878]
[1735826792452,20.17123878,207.97,207.9,20.17123878]
[1735826792653,43.94812278,207.97,207.9,20.17123878]
[1735826793176,43.94812278,207.96,207.89,20.17123878]
[1735826793476,43.94812278,207.9,207.83,20.17123878]
[1735826793670,43.94812278,207.9,207.84,0.72148576]
[1735826793869,43.94812278,207.9,207.82,20.17123878]
[1735826794278,43.94812278,207.88,207.81,20.89272454]
[1735826794485,20.17123878,207.86,207.8,1.6528]
[1735826794853,20.17123878,207.85,207.8,1.6528]
[1735826795084,23.776884,207.84,207.8,1.6528]
[1735826795250,23.776884,207.84,207.78,20.17123878]
[1735826795251,23.776884,207.82,207.76,20.17123878]
[1735826795656,23.776884,207.82,207.75,20.17123878]
[1735826795657,20.98257116,207.82,207.75,20.17123878]
[1735826795857,20.17123878,207.82,207.75,20.17123878]
[1735826796166,23.776884,207.8,207.74,6.665]
[1735826796367,23.776884,207.8,207.73,22.45960301]
[1735826797072,23.776884,207.81,207.75,20.17123878]
[1735826797779,23.902374,207.82,207.75,20.17123878]
[1735826797973,24.71370638,207.82,207.75,20.17123878]
[1735826798285,20.17123878,207.86,207.79,20.17123878]
[1735826798485,0.81133238,207.89,207.76,0.72186243]
[1735826798486,20.17123878,207.88,207.8,20.17123878]
[1735826798733,23.902374,207.86,207.8,20.17123878]
[1735826798893,23.902374,207.86,207.76,0.72186243]
[1735826798894,23.902374,207.86,207.79,20.17123878]
[1735826799525,20.17123878,207.88,207.81,20.17123878]
[1735826799730,20.17123878,207.88,207.8,0.72167987]
[1735826799731,0.81133238,207.91,207.84,20.17123878]
[1735826799890,20.17123878,207.92,207.85,20.17123878]
[1735826800089,44.07361278,207.91,207.84,20.17123878]
[1735826800396,20.98257116,207.9,207.82,20.89286065]
[1735826800598,23.776884,207.88,207.82,0.72162187]
[1735826800810,23.776884,207.88,207.82,20.89286065]
[1735826801011,23.776884,207.89,207.83,20.17123878]
[1735826801218,20.17123878,207.92,207.85,20.17123878]
[1735826801390,20.17123878,207.93,207.85,20.17123878]
[1735826801595,20.17123878,207.91,207.84,20.17123878]
[1735826802321,23.776884,207.86,207.8,20.17123878]
[1735826802944,23.776884,207.86,207.79,20.17123878]
[1735826803447,43.94812278,207.84,207.77,20.89288894]
[1735826803748,20.17123878,207.82,207.74,20.17123878]
[1735826803907,43.94812278,207.81,207.74,20.89305509]
[1735826804107,43.94812278,207.81,207.71,6.2337]
[1735826804108,23.776884,207.79,207.73,21.73773878]
[1735826804309,23.776884,207.79,207.74,20.89310626]
[1735826804541,20.17123878,207.84,207.76,20.17123878]
[1735826804725,20.17123878,207.84,207.77,20.17123878]
[1735826804911,20.17123878,207.86,207.78,20.17123878]
[1735826805111,20.17123878,207.86,207.79,20.17123878]
[1735826805305,23.776884,207.85,207.78,20.17123878]
[1735826805846,23.776884,207.85,207.79,20.17123878]
[1735826806443,20.17123878,207.87,207.8,20.17123878]
[1735826806612,20.17123878,207.91,207.84,20.17123878]
[1735826806814,20.17123878,207.9,207.83,20.17123878]
[1735826807447,43.94812278,207.89,207.82,20.17123878]
[1735826807628,43.94812278,207.87,207.8,20.17123878]
[1735826807812,23.776884,207.85,207.79,20.17123878]
[1735826808015,23.776884,207.85,207.79,20.89292875]
[1735826809341,23.776884,207.85,207.79,20.17123878]
[1735826809841,20.17123878,207.81,207.73,157.33773878]
[1735826810250,20.17123878,207.81,207.74,20.17123878]
[1735826810451,20.17123878,207.81,207.73,157.33773878]
[1735826810763,20.17123878,207.81,207.74,20.17123878]
[1735826810929,20.17123878,207.82,207.74,20.89308739]
[1735826811329,20.17123878,207.84,207.76,20.17123878]
[1735826811545,23.776884,207.83,207.76,20.17123878]
[1735826811947,20.17123878,207.87,207.8,20.17123878]
[1735826812660,23.776884,207.86,207.8,20.17123878]
[1735826813063,23.776884,207.86,207.77,0.72174517]
[1735826813231,23.776884,207.86,207.79,20.17123878]
[1735826813428,43.94812278,207.86,207.78,20.17123878]
[1735826813633,23.776884,207.84,207.77,20.89298395]
[1735826813856,23.776884,207.84,207.78,20.17123878]
[1735826814358,23.776884,207.85,207.78,20.17123878]
[1735826815955,20.17123878,207.89,207.82,20.17123878]
[1735826816175,20.17123878,207.88,207.81,20.17123878]
[1735826816370,20.17123878,207.88,207.8,20.17123878]
[1735826816726,20.17123878,207.88,207.81,0.72159925]
[1735826817223,23.776884,207.87,207.81,20.89283803]
[1735826817892,20.17123878,207.9,207.82,20.17123878]
[1735826818192,1.6253,207.94,207.85,20.17123878]
[1735826818193,20.17123878,207.92,207.85,20.17123878]
[1735826818494,20.17123878,207.91,207.83,40.89272966]
[1735826819356,20.17123878,207.91,207.84,20.17123878]
[1735826819792,20.17123878,207.91,207.85,0.72147959]
[1735826820456,23.776884,207.9,207.85,0.72147959]
[1735826820765,23.776884,207.9,207.85,20.89271837]
[1735826821074,23.776884,207.91,207.86,20.17123878]
[1735826821276,23.776884,207.91,207.86,20.89268191]
[1735826821995,23.776884,207.92,207.86,20.89268191]
[1735826822183,23.776884,207.92,207.86,20.17123878]
[1735826823400,23.776884,207.88,207.82,20.17123878]
[1735826823555,20.17123878,207.87,207.8,20.17123878]
[1735826823754,23.776884,207.86,207.81,0.72159043]
[1735826824391,23.776884,207.86,207.81,20.72159043]
[1735826825908,23.776884,207.86,207.81,40.89282921]
[1735826826212,20.17123878,207.88,207.81,40.89282921]
[1735826826411,23.776884,207.87,207.81,40.89282921]
[1735826826811,20.17123878,207.9,207.83,20.17123878]
[1735826826979,20.17123878,207.92,207.85,20.17123878]
[1735826827613,20.17123878,207.93,207.86,20.17123878]
[1735826827905,20.17123878,207.92,207.85,20.17123878]
[1735826828118,23.776884,207.88,207.82,20.17123878]
[1735826828415,23.776884,207.88,207.82,0.72155972]
[1735826828704,23.776884,207.88,207.82,20.8927985]
[1735826829003,23.776884,207.88,207.82,0.72155972]
[1735826829706,23.776884,207.88,207.82,20.8927985]
[1735826830202,20.17123878,207.88,207.82,0.72155972]
[1735826831205,23.776884,207.86,207.82,0.72155972]
[1735826831406,43.94812278,207.87,207.82,0.72155972]
[1735826831704,43.94812278,207.87,207.81,0.72158648]
[1735826832005,23.776884,207.87,207.81,20.89282526]
[1735826832515,20.17123878,207.91,207.84,20.17123878]
[1735826833007,20.17123878,207.91,207.78,137.1518]
[1735826833008,20.17123878,207.93,207.85,20.8926993]
[1735826833195,23.776884,207.92,207.86,20.17123878]
[1735826833387,20.17123878,207.93,207.86,20.17123878]
[1735826833587,20.17123878,207.95,207.88,20.17123878]
[1735826834099,20.17123878,207.96,207.89,0.72136812]
[1735826834294,12.51875137,207.97,207.89,33.24011949]
[1735826834883,12.51875137,207.98,207.9,12.51875137]
[1735826835090,12.51875137,207.99,207.92,12.51875137]
[1735826835287,12.51875137,208.0,207.92,12.51875137]
[1735826835489,12.51875137,208.0,207.93,12.51875137]
[1735826835708,36.42112537,208.01,207.93,12.51875137]
[1735826835903,12.51875137,208.01,207.93,12.51875137]
[1735826836107,12.51875137,208.02,207.95,12.51875137]
[1735826836291,7.44394119,208.03,207.97,21.55265538]
[1735826836499,7.44394119,208.03,207.98,20.01915538]
[1735826836700,20.01915538,208.06,207.98,20.74018663]
[1735826836887,23.776884,208.04,207.98,20.74018663]
[1735826837213,20.01915538,208.06,207.99,40.01915538]
[1735826837417,20.01915538,208.06,207.99,20.0]
[1735826837418,23.776884,208.05,207.99,20.0]
[1735826837789,20.01915538,208.06,207.99,20.0]
[1735826838694,23.776884,208.05,207.99,20.0]
[1735826840417,20.01915538,208.05,207.99,20.0]
[1735826840712,20.01915538,208.09,208.02,20.01915538]
[1735826840916,20.01915538,208.13,208.06,20.01915538]
[1735826841208,7.51126653,208.14,208.0,20.01915538]
[1735826841209,27.53042191,208.14,208.07,20.7399096]
[1735826842217,20.01915538,208.14,208.07,20.7399096]
[1735826842523,20.01915538,208.16,208.08,21.65805538]
[1735826842823,20.01915538,208.16,208.09,0.72063594]
[1735826843493,23.776884,208.15,208.09,0.72063594]
[1735826843693,43.79603938,208.15,208.08,21.65805538]
[1735826843907,12.81713238,208.24,208.11,20.01915538]
[1735826844220,20.01915538,208.2,208.13,20.01915538]
[1735826844600,23.776884,208.17,208.11,20.01915538]
[1735826845114,23.776884,208.17,208.12,20.73970244]
[1735826845291,23.776884,208.18,208.12,0.72054706]
[1735826845490,23.776884,208.18,208.13,20.01915538]
[1735826845695,23.776884,208.19,208.14,20.73962841]
[1735826845898,23.776884,208.19,208.14,0.72047303]
[1735826846223,20.01915538,208.21,208.14,20.73962841]
[1735826846394,20.01915538,208.21,208.14,0.72047303]
[1735826846728,20.01915538,208.21,208.14,20.73962841]
[1735826846931,20.01915538,208.21,208.14,0.72047303]
[1735826847713,20.01915538,208.21,208.1,20.0]
[1735826847714,23.776884,208.16,208.1,20.01915538]
[1735826848118,23.776884,208.16,208.1,20.739778]
[1735826848332,43.79603938,208.16,208.1,0.72062262]
[1735826848535,43.79603938,208.16,208.09,40.73976203]
[1735826848831,20.01915538,208.19,208.12,20.01915538]
[1735826849007,20.01915538,208.18,208.12,0.72049724]
[1735826849198,20.01915538,208.19,208.12,20.73965262]
[1735826849535,23.776884,208.18,208.12,20.73965262]
[1735826849699,20.01915538,208.18,208.11,20.01915538]
[1735826849903,23.776884,208.19,208.14,20.01915538]
[1735826850104,23.776884,208.19,208.13,20.01915538]
[1735826850303,43.79603938,208.19,208.12,20.73968427]
[1735826850699,23.776884,208.19,208.14,20.01915538]
[1735826850899,23.776884,208.19,208.14,20.73960375]
[1735826851100,23.776884,208.2,208.14,20.73960375]
[1735826851326,20.01915538,208.21,208.14,20.73960375]
[1735826851699,23.776884,208.2,208.15,20.01915538]
[1735826851913,23.776884,208.2,208.14,20.73960375]
[1735826852118,23.776884,208.2,208.15,0.7204384]
[1735826852899,20.01915538,208.22,208.15,20.73959378]
[1735826853094,23.776884,208.21,208.15,20.73959378]
[1735826853708,0.81133238,208.27,208.15,20.73959378]
[1735826853709,20.01915538,208.23,208.16,20.01915538]
[1735826853903,20.01915538,208.23,208.16,20.73950083]
[1735826854438,20.01915538,208.23,208.16,27.09720083]
[1735826854617,20.01915538,208.3,208.22,20.01915538]
[1735826854929,20.01915538,208.3,208.23,20.73928768]
[1735826855123,20.01915538,208.31,208.24,20.01915538]
[1735826855338,20.01915538,208.32,208.25,20.73923063]
[1735826855512,23.776884,208.31,208.25,20.73923063]
[1735826855716,20.01915538,208.32,208.25,20.73923063]
[1735826856221,20.01915538,208.33,208.26,20.01915538]
[1735826856431,20.01915538,208.29,208.22,20.01915538]
[1735826856611,20.01915538,208.28,208.22,20.01915538]
[1735826856801,43.79603938,208.27,208.21,0.72006552]
[1735826857006,20.01915538,208.24,208.19,20.0]
[1735826857207,20.01915538,208.24,208.19,0.72027026]
[1735826857412,20.01915538,208.25,208.19,0.72027026]
[1735826858031,23.776884,208.24,208.19,0.72027026]
[1735826858233,43.79603938,208.24,208.19,0.72027026]
[1735826858530,23.776884,208.24,208.19,0.72027026]
[1735826859129,20.01915538,208.27,208.21,20.01915538]
[1735826859331,20.01915538,208.27,208.22,0.72017152]
[1735826859715,20.01915538,208.26,208.22,0.72017152]
[1735826859917,20.01915538,208.23,208.2,0.72020797]
[1735826860117,20.01915538,208.23,208.17,21.67795538]
[1735826860118,20.01915538,208.23,208.18,0.72027841]
[1735826860430,12.48752248,208.22,208.18,0.72027841]
[1735826860633,12.48752248,208.23,208.18,0.72027841]
[1735826861627,12.48752248,208.22,208.18,0.72027841]
[1735826861922,12.48752248,208.21,208.17,1.6588]
[1735826862128,12.48752248,208.2,208.17,1.6588]
[1735826862632,12.48752248,208.18,208.12,2.32542428]
[1735826862833,36.26440648,208.17,208.12,2.32542428]
[1735826863019,12.48752248,208.16,208.12,2.32542428]
[1735826863208,12.48752248,208.16,208.12,1.605]
[1735826863536,0.81133238,208.23,208.12,1.605]
[1735826863537,12.48752248,208.17,208.12,1.605]
[1735826864122,23.776884,208.16,208.12,1.605]
[1735826864318,19.99088298,208.17,208.12,1.605]
[1735826864507,19.99088298,208.18,208.12,2.32556378]
[1735826865430,43.76776698,208.17,208.12,2.32556378]
[1735826865633,43.76776698,208.17,208.12,1.605]
[1735826867110,23.776884,208.18,208.12,21.59588298]
[1735826867723,19.99088298,208.18,208.12,1.605]
[1735826868142,23.776884,208.16,208.12,1.605]
[1735826869538,43.76776698,208.16,208.12,1.605]
[1735826869716,23.776884,208.12,208.07,1.6317]
[1735826869918,43.76776698,208.12,208.07,1.6317]
[1735826870117,19.99088298,208.1,208.07,1.6317]
[1735826870946,23.776884,208.09,208.07,1.6317]
[1735826871124,19.99088298,208.09,208.02,22.35873642]
[1735826871328,23.776884,208.05,207.98,20.71177771]
[1735826871524,23.776884,208.05,207.98,19.99088298]
[1735826871721,43.76776698,208.05,207.98,19.99088298]
[1735826871923,19.99088298,208.1,207.97,1.6471]
[1735826871924,23.776884,208.03,207.97,21.63798298]
[1735826872228,23.776884,208.06,207.99,19.99088298]
[1735826872834,19.99088298,208.06,207.99,19.99088298]
[1735826873217,19.99088298,208.05,207.98,19.99088298]
[1735826873420,23.776884,208.04,207.98,19.99088298]
[1735826873620,19.99088298,208.06,207.99,19.99088298]
[1735826873820,23.776884,208.08,208.02,19.99088298]
[1735826876022,23.776884,208.09,208.05,19.99088298]
[1735826876453,44.57909936,208.11,208.04,19.99088298]
[1735826876956,23.776884,208.09,208.04,19.99088298]
[1735826877161,19.99088298,208.12,208.05,19.99088298]
[1735826877332,19.99088298,208.13,208.06,19.99088298]
[1735826877641,19.99088298,208.14,208.07,19.99088298]
[1735826877828,20.80221536,208.16,208.08,19.99088298]
[1735826878144,19.99088298,208.16,208.09,19.99088298]
[1735826878441,19.99088298,208.16,208.07,1.6416]
[1735826878442,23.776884,208.15,208.08,20.71152728]
[1735826878621,43.76776698,208.15,208.08,20.71152728]
[1735826878935,19.99088298,208.15,208.08,20.71152728]
[1735826879247,19.99088298,208.16,208.09,19.99088298]
[1735826879739,43.76776698,208.15,208.08,20.71152728]
[1735826879947,19.99088298,208.15,208.08,20.71152728]
[1735826880246,19.99088298,208.16,208.09,19.99088298]
[1735826880642,19.99088298,208.18,208.11,19.99088298]
[1735826880942,19.99088298,208.21,208.13,19.99088298]
[1735826881448,23.776884,208.19,208.13,19.99088298]
[1735826881646,43.76776698,208.19,208.12,20.71145514]
[1735826881820,43.76776698,208.17,208.1,19.99088298]
[1735826882026,43.76776698,208.17,208.09,20.71140966]
[1735826882745,43.76776698,208.17,208.09,19.99088298]
[1735826882917,23.776884,208.17,208.09,19.99088298]
[1735826883252,13.06941238,208.21,208.07,1.6416]
[1735826883253,23.776884,208.11,208.07,1.6416]
[1735826883421,23.776884,208.09,208.03,19.99088298]
[1735826883622,23.776884,208.13,208.04,20.71169209]
[1735826883841,24.027864,208.13,208.04,0.72080911]
[1735826884045,23.776884,208.13,208.04,0.72080911]
[1735826884261,0.81133238,208.19,208.07,20.0]
[1735826884422,0.81133238,208.19,208.08,0.72062437]
[1735826884823,19.99088298,208.16,208.09,19.99088298]
[1735826885022,19.99088298,208.15,208.08,20.71150735]
[1735826885248,23.776884,208.15,208.09,19.99088298]
[1735826885430,23.776884,208.15,208.1,19.99088298]
[1735826886025,19.99088298,208.15,208.07,19.99088298]
[1735826886229,23.776884,208.13,208.07,20.71156962]
[1735826886520,23.776884,208.14,208.07,20.71156962]
[1735826886717,23.776884,208.14,208.08,19.99088298]
[1735826886944,23.776884,208.14,208.07,20.71156962]
[1735826887124,23.776884,208.14,208.08,19.99088298]
[1735826887328,23.776884,208.14,208.08,20.71155999]
[1735826887531,19.99088298,208.17,208.1,19.99088298]
[1735826887734,19.99088298,208.17,208.08,0.72067701]
[1735826887735,19.99088298,208.18,208.11,19.99088298]
[1735826887923,19.99088298,208.17,208.1,19.99088298]
[1735826888121,19.99088298,208.15,208.08,0.72067701]
[1735826888348,12.49786787,208.16,208.09,12.49786787]
[1735826888644,13.5748,208.22,208.1,12.49786787]
[1735826888645,12.49786787,208.17,208.1,12.49786787]
[1735826889423,12.49786787,208.18,208.1,12.49786787]
[1735826889637,12.49786787,208.18,208.05,155.6]
[1735826889638,23.776884,208.17,208.11,13.21839873]
[1735826889842,12.49786787,208.19,208.12,1.5544]
[1735826890051,23.776884,208.19,208.12,14.05226787]
[1735826890365,23.776884,208.17,208.12,1.5544]
[1735826890954,12.49786787,208.17,208.12,1.5544]
[1735826891160,23.776884,208.15,208.12,1.5544]
[1735826891548,23.776884,208.16,208.12,1.5544]
[1735826891834,23.776884,208.13,208.07,14.04246787]
[1735826892041,23.776884,208.11,208.07,1.5446]
[1735826892240,12.49786787,208.09,208.02,12.49786787]
[1735826892437,23.776884,208.08,208.02,12.49786787]
[1735826892634,12.49786787,208.07,208.01,2.32363028]
[1735826893032,23.776884,208.08,208.02,12.49786787]
[1735826894953,12.49786787,208.08,208.01,14.82149815]
[1735826895137,23.776884,208.07,208.01,14.82149815]
[1735826896043,12.49786787,208.06,208.01,1.6029]
[1735826896263,12.49786787,208.04,208.01,1.6029]
[1735826896453,23.776884,208.01,207.96,1.6384]
[1735826896637,12.49786787,207.98,207.92,6.1572]